[Event "Titled Tuesday Blitz August 22 Late 2023"]
[White "Filip, Andrei"]
[Black "Fernandez Lopez, Ruben"]
[WhiteFideId "1249452"]
[BlackFideId "24518298"]
[WhiteElo "2344"]
[BlackElo "2469"]
[Result "1-0"]
[Round "8"]
[TimeControl "180+1"]
[Date "2023.08.22"]
[WhiteClock "0:00:11"]
[BlackClock "0:01:27"]
[Board "108"]

1. d4 {[%clk 0:03:00]}  b6 {[%clk 0:02:55]} 2. e4 {[%clk 0:02:59]}  Bb7 {[%clk 0:02:56]} 3. Bd3 {[%clk 0:02:59]}  e6 {[%clk 0:02:56]} 4. c4 {[%clk 0:02:58]}  Bb4+ {[%clk 0:02:53]} 5. Bd2 {[%clk 0:02:56]}  Bxd2+ {[%clk 0:02:51]} 6. Nxd2 {[%clk 0:02:57]}  Nc6 {[%clk 0:02:51]} 7. Ngf3 {[%clk 0:02:56]}  d6 {[%clk 0:02:50]} 8. O-O {[%clk 0:02:54]}  e5 {[%clk 0:02:50]} 9. d5 {[%clk 0:02:43]}  Nce7 {[%clk 0:02:48]} 10. b4 {[%clk 0:02:43]}  Nf6 {[%clk 0:02:47]} 11. c5 {[%clk 0:02:37]}  O-O {[%clk 0:02:47]} 12. c6 {[%clk 0:02:31]}  Bc8 {[%clk 0:02:46]} 13. a4 {[%clk 0:02:22]}  a5 {[%clk 0:02:44]} 14. b5 {[%clk 0:02:21]}  Nh5 {[%clk 0:02:43]} 15. g3 {[%clk 0:01:59]}  f5 {[%clk 0:02:32]} 16. Nxe5 {[%clk 0:01:50]}  fxe4 {[%clk 0:02:27]} 17. Nxe4 {[%clk 0:01:39]}  dxe5 {[%clk 0:02:26]} 18. Qxh5 {[%clk 0:01:38]}  Qxd5 {[%clk 0:02:25]} 19. Rad1 {[%clk 0:01:11]}  Bf5 {[%clk 0:02:18]} 20. Bb1 {[%clk 0:00:38]}  Qb3 {[%clk 0:02:08]} 21. Ng5 {[%clk 0:00:34]}  h6 {[%clk 0:02:02]} 22. Ne4 {[%clk 0:00:27]}  Qxa4 {[%clk 0:02:00]} 23. Qh4 {[%clk 0:00:26]}  Qxb5 {[%clk 0:01:59]} 24. Qxe7 {[%clk 0:00:25]}  Qxc6 {[%clk 0:01:59]} 25. Rc1 {[%clk 0:00:16]}  Qg6 {[%clk 0:01:57]} 26. Rxc7 {[%clk 0:00:16]}  Rae8 {[%clk 0:01:55]} 27. Qa3 {[%clk 0:00:09]}  Bxe4 {[%clk 0:01:55]} 28. Qb3+ {[%clk 0:00:08]}  Kh8 {[%clk 0:01:54]} 29. Bxe4 {[%clk 0:00:08]}  Qxe4 {[%clk 0:01:55]} 30. Qxb6 {[%clk 0:00:09]}  Qd5 {[%clk 0:01:53]} 31. Qa7 {[%clk 0:00:08]}  Rg8 {[%clk 0:01:50]} 32. Rd7 {[%clk 0:00:08]}  Qb5 {[%clk 0:01:49]} 33. Rb7 {[%clk 0:00:08]}  Ra8 {[%clk 0:01:42]} 34. Rxb5 {[%clk 0:00:05]}  Rxa7 {[%clk 0:01:41]} 35. Ra1 {[%clk 0:00:06]}  a4 {[%clk 0:01:41]} 36. Rxe5 {[%clk 0:00:06]}  a3 {[%clk 0:01:41]} 37. Ra2 {[%clk 0:00:06]}  Rb8 {[%clk 0:01:40]} 38. Kg2 {[%clk 0:00:06]}  Rb2 {[%clk 0:01:40]} 39. Re8+ {[%clk 0:00:06]}  Kh7 {[%clk 0:01:40]} 40. Rxb2 {[%clk 0:00:06]}  axb2 {[%clk 0:01:40]} 41. Rb8 {[%clk 0:00:07]}  Ra2 {[%clk 0:01:40]} 42. h4 {[%clk 0:00:07]}  h5 {[%clk 0:01:40]} 43. Kf3 {[%clk 0:00:07]}  Kg6 {[%clk 0:01:40]} 44. Kf4 {[%clk 0:00:07]}  Kf6 {[%clk 0:01:40]} 45. Rb6+ {[%clk 0:00:08]}  Ke7 {[%clk 0:01:39]} 46. Kg5 {[%clk 0:00:08]}  Kd7 {[%clk 0:01:38]} 47. Kxh5 {[%clk 0:00:08]}  Kc7 {[%clk 0:01:39]} 48. Rb3 {[%clk 0:00:07]}  Kc6 {[%clk 0:01:39]} 49. Kg6 {[%clk 0:00:08]}  Kc5 {[%clk 0:01:40]} 50. Kxg7 {[%clk 0:00:08]}  Kc4 {[%clk 0:01:41]} 51. Rb8 {[%clk 0:00:08]}  Kc3 {[%clk 0:01:39]} 52. h5 {[%clk 0:00:09]}  Ra7+ {[%clk 0:01:37]} 53. Kg6 {[%clk 0:00:09]}  Ra4 {[%clk 0:01:36]} 54. Rxb2 {[%clk 0:00:07]}  Kxb2 {[%clk 0:01:36]} 55. h6 {[%clk 0:00:08]}  Rg4+ {[%clk 0:01:36]} 56. Kf7 {[%clk 0:00:09]}  Ra4 {[%clk 0:01:32]} 57. h7 {[%clk 0:00:09]}  Ra7+ {[%clk 0:01:32]} 58. Kg6 {[%clk 0:00:09]}  Ra8 {[%clk 0:01:33]} 59. Kg7 {[%clk 0:00:09]}  Ra7+ {[%clk 0:01:32]} 60. Kh6 {[%clk 0:00:09]}  Ra8 {[%clk 0:01:32]} 61. g4 {[%clk 0:00:10]}  Kc3 {[%clk 0:01:33]} 62. g5 {[%clk 0:00:10]}  Kd4 {[%clk 0:01:34]} 63. g6 {[%clk 0:00:11]}  Ke5 {[%clk 0:01:34]} 64. g7 {[%clk 0:00:11]}  Ra6+ {[%clk 0:01:27]} 65. Kg5 {[%clk 0:00:11]} 1-0


[Site "https://www.chess.com"]

[Event "Titled Tuesday Blitz August 22 Late 2023"]
[White "Chemin, Justo Reinaldo"]
[Black "Buchenau, Frank"]
[WhiteFideId "2101580"]
[BlackFideId "4604350"]
[WhiteElo "2291"]
[BlackElo "2457"]
[Result "0-1"]
[Round "8"]
[TimeControl "180+1"]
[Date "2023.08.22"]
[WhiteClock "0:00:05"]
[BlackClock "0:00:46"]
[Board "109"]

1. d4 {[%clk 0:03:00]}  e6 {[%clk 0:02:59]} 2. e4 {[%clk 0:02:59]}  d5 {[%clk 0:02:59]} 3. Nc3 {[%clk 0:02:59]}  Nf6 {[%clk 0:02:59]} 4. exd5 {[%clk 0:02:54]}  exd5 {[%clk 0:02:58]} 5. Bd3 {[%clk 0:02:54]}  Bg4 {[%clk 0:02:57]} 6. f3 {[%clk 0:02:53]}  Bh5 {[%clk 0:02:57]} 7. Nge2 {[%clk 0:02:53]}  Bg6 {[%clk 0:02:57]} 8. Bg5 {[%clk 0:02:47]}  c6 {[%clk 0:02:56]} 9. Bxg6 {[%clk 0:02:45]}  hxg6 {[%clk 0:02:56]} 10. Qd3 {[%clk 0:02:46]}  Nbd7 {[%clk 0:02:54]} 11. O-O-O {[%clk 0:02:45]}  Be7 {[%clk 0:02:48]} 12. Nf4 {[%clk 0:02:39]}  Nb6 {[%clk 0:02:38]} 13. Rde1 {[%clk 0:02:35]}  Qd7 {[%clk 0:02:38]} 14. Re2 {[%clk 0:02:26]}  O-O-O {[%clk 0:02:37]} 15. Rhe1 {[%clk 0:02:24]}  Bb4 {[%clk 0:02:35]} 16. h3 {[%clk 0:02:20]}  Nc4 {[%clk 0:02:25]} 17. a3 {[%clk 0:02:09]}  Bd6 {[%clk 0:02:25]} 18. h4 {[%clk 0:01:31]}  Qc7 {[%clk 0:02:25]} 19. Nh3 {[%clk 0:01:30]}  Qb6 {[%clk 0:02:22]} 20. Na4 {[%clk 0:01:27]}  Qb5 {[%clk 0:02:19]} 21. Bxf6 {[%clk 0:01:26]}  gxf6 {[%clk 0:02:18]} 22. Qb3 {[%clk 0:01:25]}  Qxb3 {[%clk 0:02:13]} 23. cxb3 {[%clk 0:01:25]}  Na5 {[%clk 0:02:04]} 24. Kc2 {[%clk 0:01:20]}  Rxh4 {[%clk 0:02:04]} 25. Nf2 {[%clk 0:01:19]}  Rxd4 {[%clk 0:02:00]} 26. Nc3 {[%clk 0:01:11]}  Rh4 {[%clk 0:01:52]} 27. Nfd1 {[%clk 0:01:05]}  f5 {[%clk 0:01:49]} 28. b4 {[%clk 0:00:58]}  Nc4 {[%clk 0:01:48]} 29. Nb1 {[%clk 0:00:57]}  b6 {[%clk 0:01:42]} 30. b3 {[%clk 0:00:57]}  Nxa3+ {[%clk 0:01:29]} 31. Nxa3 {[%clk 0:00:56]}  Bxb4 {[%clk 0:01:29]} 32. Nb1 {[%clk 0:00:52]}  Bxe1 {[%clk 0:01:29]} 33. Rxe1 {[%clk 0:00:53]}  Kd7 {[%clk 0:01:28]} 34. Nbc3 {[%clk 0:00:47]}  Rh2 {[%clk 0:01:26]} 35. Re2 {[%clk 0:00:47]}  Re8 {[%clk 0:01:24]} 36. Rd2 {[%clk 0:00:47]}  Re1 {[%clk 0:01:18]} 37. Nb2 {[%clk 0:00:44]}  Rg1 {[%clk 0:01:17]} 38. Nd3 {[%clk 0:00:43]}  Rgxg2 {[%clk 0:01:13]} 39. Rxg2 {[%clk 0:00:29]}  Rxg2+ {[%clk 0:01:14]} 40. Kd1 {[%clk 0:00:28]}  Kd6 {[%clk 0:01:12]} 41. f4 {[%clk 0:00:27]}  d4 {[%clk 0:01:07]} 42. Ne2 {[%clk 0:00:27]}  c5 {[%clk 0:01:05]} 43. Ne5 {[%clk 0:00:25]}  f6 {[%clk 0:01:04]} 44. Nc4+ {[%clk 0:00:23]}  Kd5 {[%clk 0:01:04]} 45. Kd2 {[%clk 0:00:20]}  b5 {[%clk 0:01:02]} 46. Nb2 {[%clk 0:00:17]}  c4 {[%clk 0:01:02]} 47. bxc4+ {[%clk 0:00:17]}  bxc4 {[%clk 0:01:02]} 48. Nd1 {[%clk 0:00:16]}  Rh2 {[%clk 0:00:54]} 49. Ke1 {[%clk 0:00:12]}  a5 {[%clk 0:00:50]} 50. Nf2 {[%clk 0:00:11]}  a4 {[%clk 0:00:49]} 51. Nc1 {[%clk 0:00:10]}  a3 {[%clk 0:00:48]} 52. Nd1 {[%clk 0:00:10]}  a2 {[%clk 0:00:47]} 53. Nxa2 {[%clk 0:00:05]}  Rxa2 {[%clk 0:00:46]} 0-1


[Site "https://www.chess.com"]

[Event "Titled Tuesday Blitz August 22 Late 2023"]
[White "Wieczorek, Zbigniew"]
[Black "The_Straightforward_Rook"]
[WhiteFideId "1102001"]
[WhiteElo "2193"]
[BlackElo "2452"]
[Result "0-1"]
[Round "8"]
[TimeControl "180+1"]
[Date "2023.08.22"]
[WhiteClock "0:00:03"]
[BlackClock "0:00:27"]
[Board "111"]

1. g3 {[%clk 0:02:59]}  e5 {[%clk 0:02:57]} 2. Bg2 {[%clk 0:02:59]}  d5 {[%clk 0:02:58]} 3. c3 {[%clk 0:02:58]}  Nf6 {[%clk 0:02:54]} 4. d4 {[%clk 0:02:57]}  e4 {[%clk 0:02:53]} 5. Bg5 {[%clk 0:02:57]}  Nbd7 {[%clk 0:02:48]} 6. Nd2 {[%clk 0:02:53]}  h6 {[%clk 0:02:45]} 7. Bxf6 {[%clk 0:02:52]}  Nxf6 {[%clk 0:02:46]} 8. e3 {[%clk 0:02:51]}  Bd6 {[%clk 0:02:45]} 9. c4 {[%clk 0:02:51]}  c6 {[%clk 0:02:45]} 10. Ne2 {[%clk 0:02:49]}  O-O {[%clk 0:02:44]} 11. cxd5 {[%clk 0:02:49]}  cxd5 {[%clk 0:02:44]} 12. Nc3 {[%clk 0:02:49]}  Be6 {[%clk 0:02:43]} 13. Qb3 {[%clk 0:02:48]}  Qd7 {[%clk 0:02:40]} 14. O-O {[%clk 0:02:43]}  a6 {[%clk 0:02:38]} 15. Na4 {[%clk 0:02:41]}  Qb5 {[%clk 0:02:35]} 16. Rfc1 {[%clk 0:02:33]}  Rac8 {[%clk 0:02:24]} 17. Bf1 {[%clk 0:02:30]}  Qxb3 {[%clk 0:02:21]} 18. Nxb3 {[%clk 0:02:29]}  Rxc1 {[%clk 0:02:17]} 19. Rxc1 {[%clk 0:02:29]}  Rc8 {[%clk 0:02:16]} 20. Rxc8+ {[%clk 0:02:21]}  Bxc8 {[%clk 0:02:17]} 21. Nb6 {[%clk 0:02:21]}  Be6 {[%clk 0:02:14]} 22. Nc5 {[%clk 0:02:20]}  Bxc5 {[%clk 0:02:09]} 23. dxc5 {[%clk 0:02:21]}  Nd7 {[%clk 0:02:01]} 24. b4 {[%clk 0:02:03]}  Nxb6 {[%clk 0:02:00]} 25. cxb6 {[%clk 0:02:03]}  d4 {[%clk 0:01:57]} 26. exd4 {[%clk 0:01:59]}  Bxa2 {[%clk 0:01:57]} 27. Bxa6 {[%clk 0:01:54]}  Bd5 {[%clk 0:01:52]} 28. Bb5 {[%clk 0:01:53]}  Kf8 {[%clk 0:01:50]} 29. Kf1 {[%clk 0:01:53]}  Ke7 {[%clk 0:01:51]} 30. Ke2 {[%clk 0:01:53]}  Kd6 {[%clk 0:01:52]} 31. Ke3 {[%clk 0:01:53]}  g5 {[%clk 0:01:51]} 32. g4 {[%clk 0:01:52]}  Be6 {[%clk 0:01:31]} 33. h3 {[%clk 0:01:36]}  f5 {[%clk 0:01:31]} 34. Be2 {[%clk 0:01:24]}  Kc6 {[%clk 0:01:13]} 35. gxf5 {[%clk 0:00:51]}  Bxf5 {[%clk 0:01:14]} 36. Bg4 {[%clk 0:00:50]}  Bg6 {[%clk 0:01:11]} 37. Be6 {[%clk 0:00:45]}  Kxb6 {[%clk 0:01:04]} 38. d5 {[%clk 0:00:45]}  Kc7 {[%clk 0:01:01]} 39. Kd4 {[%clk 0:00:45]}  Kd6 {[%clk 0:01:02]} 40. Bg4 {[%clk 0:00:25]}  h5 {[%clk 0:00:57]} 41. Bd1 {[%clk 0:00:23]}  g4 {[%clk 0:00:50]} 42. h4 {[%clk 0:00:22]}  b6 {[%clk 0:00:41]} 43. Bc2 {[%clk 0:00:18]}  e3 {[%clk 0:00:40]} 44. Bd1 {[%clk 0:00:09]}  exf2 {[%clk 0:00:38]} 45. Be2 {[%clk 0:00:10]}  g3 {[%clk 0:00:31]} 46. Bf1 {[%clk 0:00:09]}  Bf7 {[%clk 0:00:27]} 47. Ke3 {[%clk 0:00:09]}  Bxd5 {[%clk 0:00:27]} 48. Kf4 {[%clk 0:00:03]}  g2 {[%clk 0:00:27]} 0-1


[Site "https://www.chess.com"]

[Event "Titled Tuesday Blitz August 22 Late 2023"]
[White "Antonio, Jorge Carlos"]
[Black "Fiorito, Joaquin"]
[WhiteFideId "113190"]
[BlackFideId "180173"]
[WhiteElo "2312"]
[BlackElo "2594"]
[Result "1-0"]
[Round "8"]
[TimeControl "180+1"]
[Date "2023.08.22"]
[WhiteClock "0:00:39"]
[BlackClock "0:00:51"]
[Board "116"]

1. e4 {[%clk 0:03:00]}  c5 {[%clk 0:02:59]} 2. Nf3 {[%clk 0:03:00]}  d6 {[%clk 0:03:00]} 3. d4 {[%clk 0:02:59]}  cxd4 {[%clk 0:03:00]} 4. Nxd4 {[%clk 0:02:58]}  Nf6 {[%clk 0:03:01]} 5. Nc3 {[%clk 0:02:57]}  a6 {[%clk 0:03:02]} 6. Be3 {[%clk 0:02:56]}  e5 {[%clk 0:03:02]} 7. Nf3 {[%clk 0:02:55]}  Be7 {[%clk 0:02:59]} 8. Bc4 {[%clk 0:02:36]}  O-O {[%clk 0:02:56]} 9. Bb3 {[%clk 0:02:30]}  Be6 {[%clk 0:02:54]} 10. O-O {[%clk 0:02:29]}  Qc8 {[%clk 0:02:52]} 11. Nd5 {[%clk 0:02:22]}  Bxd5 {[%clk 0:02:50]} 12. Bxd5 {[%clk 0:02:20]}  Nxd5 {[%clk 0:02:50]} 13. Qxd5 {[%clk 0:02:12]}  Nc6 {[%clk 0:02:48]} 14. c3 {[%clk 0:02:07]}  Kh8 {[%clk 0:02:48]} 15. Nd2 {[%clk 0:01:59]}  h6 {[%clk 0:02:42]} 16. Nc4 {[%clk 0:01:54]}  Qe6 {[%clk 0:02:38]} 17. Rfd1 {[%clk 0:01:49]}  Rad8 {[%clk 0:02:33]} 18. Qxe6 {[%clk 0:01:44]}  fxe6 {[%clk 0:02:32]} 19. Bb6 {[%clk 0:01:41]}  Rd7 {[%clk 0:02:32]} 20. a4 {[%clk 0:01:36]}  d5 {[%clk 0:02:22]} 21. b4 {[%clk 0:01:30]}  Bf6 {[%clk 0:02:10]} 22. Bc5 {[%clk 0:01:27]}  Re8 {[%clk 0:01:38]} 23. Nb6 {[%clk 0:01:23]}  Rf7 {[%clk 0:01:39]} 24. exd5 {[%clk 0:01:19]}  exd5 {[%clk 0:01:40]} 25. Nxd5 {[%clk 0:01:16]}  e4 {[%clk 0:01:39]} 26. Re1 {[%clk 0:01:11]}  Bg5 {[%clk 0:01:35]} 27. a5 {[%clk 0:01:04]}  Rd8 {[%clk 0:01:30]} 28. c4 {[%clk 0:01:03]}  Ne5 {[%clk 0:01:24]} 29. f4 {[%clk 0:00:59]}  Nxc4 {[%clk 0:00:55]} 30. fxg5 {[%clk 0:00:52]}  Rxd5 {[%clk 0:00:55]} 31. Rxe4 {[%clk 0:00:48]}  Ne5 {[%clk 0:00:54]} 32. gxh6 {[%clk 0:00:43]}  gxh6 {[%clk 0:00:54]} 33. Rxe5 {[%clk 0:00:39]}  Rxe5 {[%clk 0:00:51]} 34. Bd4 {[%clk 0:00:39]} 1-0


[Site "https://www.chess.com"]

[Event "Titled Tuesday Blitz August 22 Late 2023"]
[White "Graif, William"]
[Black "Magallanes, Rey Jomar"]
[WhiteFideId "2609835"]
[BlackFideId "5205948"]
[WhiteElo "2502"]
[BlackElo "2258"]
[Result "1-0"]
[Round "8"]
[TimeControl "180+1"]
[Date "2023.08.22"]
[WhiteClock "0:00:15"]
[BlackClock "0:00:40"]
[Board "119"]

1. e4 {[%clk 0:03:00]}  c5 {[%clk 0:02:59]} 2. Nc3 {[%clk 0:02:59]}  d6 {[%clk 0:02:58]} 3. f4 {[%clk 0:02:59]}  g6 {[%clk 0:02:58]} 4. Nf3 {[%clk 0:02:59]}  Bg7 {[%clk 0:02:57]} 5. Bc4 {[%clk 0:02:58]}  Nc6 {[%clk 0:02:57]} 6. O-O {[%clk 0:02:58]}  e6 {[%clk 0:02:57]} 7. d4 {[%clk 0:02:58]}  Nxd4 {[%clk 0:02:56]} 8. Be3 {[%clk 0:02:57]}  Nc6 {[%clk 0:02:53]} 9. Nb5 {[%clk 0:02:56]}  Nd4 {[%clk 0:02:44]} 10. Nfxd4 {[%clk 0:02:44]}  cxd4 {[%clk 0:02:44]} 11. Bxd4 {[%clk 0:02:44]}  Nf6 {[%clk 0:02:40]} 12. e5 {[%clk 0:02:11]}  Ne4 {[%clk 0:02:32]} 13. Bd3 {[%clk 0:01:58]}  dxe5 {[%clk 0:02:21]} 14. fxe5 {[%clk 0:01:52]}  a6 {[%clk 0:02:07]} 15. Bxe4 {[%clk 0:01:38]}  axb5 {[%clk 0:02:08]} 16. c3 {[%clk 0:00:57]}  O-O {[%clk 0:02:06]} 17. a3 {[%clk 0:00:54]}  Qc7 {[%clk 0:01:56]} 18. Rf6 {[%clk 0:00:34]}  Bd7 {[%clk 0:01:34]} 19. Qe2 {[%clk 0:00:34]}  Bc6 {[%clk 0:01:33]} 20. Re1 {[%clk 0:00:29]}  Rad8 {[%clk 0:01:29]} 21. h3 {[%clk 0:00:26]}  Bxf6 {[%clk 0:01:21]} 22. exf6 {[%clk 0:00:26]}  Rxd4 {[%clk 0:01:20]} 23. cxd4 {[%clk 0:00:24]}  Qf4 {[%clk 0:01:19]} 24. Qf2 {[%clk 0:00:14]}  Qxf2+ {[%clk 0:01:09]} 25. Kxf2 {[%clk 0:00:15]}  Rd8 {[%clk 0:01:06]} 26. Ke3 {[%clk 0:00:12]}  Kf8 {[%clk 0:01:03]} 27. Rc1 {[%clk 0:00:11]}  Rd6 {[%clk 0:01:00]} 28. g4 {[%clk 0:00:08]}  Ke8 {[%clk 0:00:59]} 29. Bxc6+ {[%clk 0:00:07]}  bxc6 {[%clk 0:00:59]} 30. g5 {[%clk 0:00:07]}  Kd7 {[%clk 0:00:57]} 31. Rc5 {[%clk 0:00:06]}  Rd5 {[%clk 0:00:53]} 32. Rxd5+ {[%clk 0:00:05]}  exd5 {[%clk 0:00:54]} 33. b3 {[%clk 0:00:05]}  Kd6 {[%clk 0:00:53]} 34. Kf4 {[%clk 0:00:05]}  c5 {[%clk 0:00:52]} 35. dxc5+ {[%clk 0:00:05]}  Kxc5 {[%clk 0:00:53]} 36. Ke5 {[%clk 0:00:02]}  d4 {[%clk 0:00:33]} 37. Ke4 {[%clk 0:00:03]}  d3 {[%clk 0:00:34]} 38. Kxd3 {[%clk 0:00:03]}  Kd5 {[%clk 0:00:34]} 39. h4 {[%clk 0:00:03]}  Ke5 {[%clk 0:00:32]} 40. a4 {[%clk 0:00:04]}  bxa4 {[%clk 0:00:32]} 41. bxa4 {[%clk 0:00:05]}  Kf4 {[%clk 0:00:32]} 42. a5 {[%clk 0:00:05]}  Kg4 {[%clk 0:00:33]} 43. a6 {[%clk 0:00:05]}  Kxh4 {[%clk 0:00:34]} 44. a7 {[%clk 0:00:06]}  Kxg5 {[%clk 0:00:35]} 45. a8=Q {[%clk 0:00:07]}  Kxf6 {[%clk 0:00:36]} 46. Qf3+ {[%clk 0:00:07]}  Kg7 {[%clk 0:00:36]} 47. Ke4 {[%clk 0:00:08]}  f5+ {[%clk 0:00:35]} 48. Kf4 {[%clk 0:00:08]}  Kf6 {[%clk 0:00:35]} 49. Qc6+ {[%clk 0:00:08]}  Kg7 {[%clk 0:00:36]} 50. Ke5 {[%clk 0:00:08]}  Kh6 {[%clk 0:00:35]} 51. Kf6 {[%clk 0:00:08]}  Kh5 {[%clk 0:00:35]} 52. Qg2 {[%clk 0:00:08]}  Kh4 {[%clk 0:00:34]} 53. Qh2+ {[%clk 0:00:09]}  Kg4 {[%clk 0:00:34]} 54. Qxh7 {[%clk 0:00:10]}  g5 {[%clk 0:00:34]} 55. Qxf5+ {[%clk 0:00:10]}  Kg3 {[%clk 0:00:34]} 56. Qxg5+ {[%clk 0:00:11]}  Kf3 {[%clk 0:00:35]} 57. Ke5 {[%clk 0:00:12]}  Ke2 {[%clk 0:00:36]} 58. Qg3 {[%clk 0:00:12]}  Kd1 {[%clk 0:00:36]} 59. Qf2 {[%clk 0:00:12]}  Kc1 {[%clk 0:00:37]} 60. Qe2 {[%clk 0:00:13]}  Kb1 {[%clk 0:00:37]} 61. Qd2 {[%clk 0:00:13]}  Ka1 {[%clk 0:00:38]} 62. Kd4 {[%clk 0:00:14]}  Kb1 {[%clk 0:00:39]} 63. Kc3 {[%clk 0:00:14]}  Ka1 {[%clk 0:00:40]} 64. Qb2# {[%clk 0:00:15]} 1-0


[Site "https://www.chess.com"]

[Event "Titled Tuesday Blitz August 22 Late 2023"]
[White "Bibasa, Bob"]
[Black "Kohler, Aran"]
[WhiteFideId "10000240"]
[BlackFideId "1002856"]
[WhiteElo "2475"]
[BlackElo "2257"]
[Result "1/2-1/2"]
[Round "8"]
[TimeControl "180+1"]
[Date "2023.08.22"]
[WhiteClock "0:01:27"]
[BlackClock "0:01:16"]
[Board "120"]

1. e4 {[%clk 0:02:58]}  c6 {[%clk 0:03:00]} 2. d4 {[%clk 0:02:57]}  d5 {[%clk 0:03:01]} 3. Nc3 {[%clk 0:02:57]}  dxe4 {[%clk 0:03:00]} 4. Nxe4 {[%clk 0:02:58]}  Bf5 {[%clk 0:03:00]} 5. Ng3 {[%clk 0:02:58]}  Bg6 {[%clk 0:03:01]} 6. Nf3 {[%clk 0:02:58]}  Nd7 {[%clk 0:03:01]} 7. h4 {[%clk 0:02:58]}  h6 {[%clk 0:03:00]} 8. h5 {[%clk 0:02:58]}  Bh7 {[%clk 0:03:01]} 9. Bd3 {[%clk 0:02:58]}  Ngf6 {[%clk 0:03:01]} 10. O-O {[%clk 0:02:57]}  e6 {[%clk 0:03:00]} 11. c3 {[%clk 0:02:56]}  Bxd3 {[%clk 0:02:55]} 12. Qxd3 {[%clk 0:02:56]}  Bd6 {[%clk 0:02:56]} 13. Ne2 {[%clk 0:02:52]}  Qc7 {[%clk 0:02:55]} 14. a4 {[%clk 0:02:44]}  Nxh5 {[%clk 0:02:53]} 15. a5 {[%clk 0:02:42]}  a6 {[%clk 0:02:39]} 16. b4 {[%clk 0:02:36]}  O-O {[%clk 0:02:36]} 17. Ra2 {[%clk 0:02:25]}  Rad8 {[%clk 0:02:35]} 18. Qe4 {[%clk 0:02:17]}  Nhf6 {[%clk 0:01:50]} 19. Qh4 {[%clk 0:02:14]}  Nh7 {[%clk 0:01:50]} 20. g3 {[%clk 0:02:06]}  e5 {[%clk 0:01:46]} 21. Be3 {[%clk 0:02:02]}  Rde8 {[%clk 0:01:39]} 22. dxe5 {[%clk 0:01:47]}  Nxe5 {[%clk 0:01:38]} 23. Nxe5 {[%clk 0:01:47]}  Bxe5 {[%clk 0:01:38]} 24. Rd2 {[%clk 0:01:45]}  Rd8 {[%clk 0:01:26]} 25. Rfd1 {[%clk 0:01:43]}  Rxd2 {[%clk 0:01:24]} 26. Rxd2 {[%clk 0:01:43]}  Bf6 {[%clk 0:01:25]} 27. Qf4 {[%clk 0:01:40]}  Qxf4 {[%clk 0:01:22]} 28. Nxf4 {[%clk 0:01:41]}  Rd8 {[%clk 0:01:22]} 29. Rxd8+ {[%clk 0:01:39]}  Bxd8 {[%clk 0:01:22]} 30. Nd3 {[%clk 0:01:39]}  Be7 {[%clk 0:01:19]} 31. Bc5 {[%clk 0:01:37]}  Bf6 {[%clk 0:01:18]} 32. Bd4 {[%clk 0:01:34]}  Be7 {[%clk 0:01:18]} 33. Bc5 {[%clk 0:01:29]}  Bf6 {[%clk 0:01:16]} 34. Bd4 {[%clk 0:01:29]}  Be7 {[%clk 0:01:16]} 35. Bc5 {[%clk 0:01:27]} 1/2-1/2


[Site "https://www.chess.com"]

[Event "Titled Tuesday Blitz August 22 Late 2023"]
[White "Vanek, Tomas"]
[Black "Ozalp, Burak"]
[WhiteFideId "313459"]
[BlackFideId "6314210"]
[WhiteElo "2220"]
[BlackElo "2386"]
[Result "0-1"]
[Round "8"]
[TimeControl "180+1"]
[Date "2023.08.22"]
[WhiteClock "0:00:14"]
[BlackClock "0:00:04"]
[Board "122"]

1. d4 {[%clk 0:02:59]}  d5 {[%clk 0:02:58]} 2. Bf4 {[%clk 0:02:57]}  Bf5 {[%clk 0:02:52]} 3. e3 {[%clk 0:02:52]}  c6 {[%clk 0:02:51]} 4. Bd3 {[%clk 0:02:42]}  e6 {[%clk 0:02:45]} 5. Bxf5 {[%clk 0:02:41]}  exf5 {[%clk 0:02:43]} 6. Qe2 {[%clk 0:02:38]}  Nf6 {[%clk 0:02:39]} 7. Nc3 {[%clk 0:02:37]}  Bb4 {[%clk 0:02:36]} 8. Nf3 {[%clk 0:02:36]}  Ne4 {[%clk 0:02:27]} 9. O-O {[%clk 0:02:35]}  Bxc3 {[%clk 0:02:24]} 10. bxc3 {[%clk 0:02:33]}  Nxc3 {[%clk 0:02:17]} 11. Qd3 {[%clk 0:02:28]}  Ne4 {[%clk 0:02:16]} 12. Rab1 {[%clk 0:02:26]}  Qe7 {[%clk 0:02:11]} 13. c4 {[%clk 0:02:23]}  O-O {[%clk 0:02:10]} 14. cxd5 {[%clk 0:02:22]}  cxd5 {[%clk 0:02:11]} 15. Qb5 {[%clk 0:02:18]}  Nd7 {[%clk 0:01:44]} 16. Qxb7 {[%clk 0:02:05]}  Nc3 {[%clk 0:01:34]} 17. Rb2 {[%clk 0:01:50]}  Rac8 {[%clk 0:01:19]} 18. Ne5 {[%clk 0:01:43]}  Rfd8 {[%clk 0:01:19]} 19. Nc6 {[%clk 0:01:38]}  Qe8 {[%clk 0:00:58]} 20. Nxd8 {[%clk 0:01:34]}  Qxd8 {[%clk 0:00:59]} 21. Rc2 {[%clk 0:01:19]}  Rc4 {[%clk 0:00:37]} 22. h3 {[%clk 0:01:09]}  g5 {[%clk 0:00:37]} 23. Bxg5 {[%clk 0:01:03]}  Qxg5 {[%clk 0:00:33]} 24. Qxd7 {[%clk 0:01:02]}  Qg6 {[%clk 0:00:30]} 25. Qd8+ {[%clk 0:00:55]}  Kg7 {[%clk 0:00:30]} 26. Qa5 {[%clk 0:00:53]}  Ne4 {[%clk 0:00:27]} 27. Rxc4 {[%clk 0:00:52]}  dxc4 {[%clk 0:00:28]} 28. Qxa7 {[%clk 0:00:42]}  c3 {[%clk 0:00:24]} 29. Qc7 {[%clk 0:00:41]}  Qa6 {[%clk 0:00:22]} 30. Qe5+ {[%clk 0:00:38]}  Kg6 {[%clk 0:00:22]} 31. g4 {[%clk 0:00:33]}  Nd2 {[%clk 0:00:12]} 32. Qxf5+ {[%clk 0:00:32]}  Kg7 {[%clk 0:00:12]} 33. Qg5+ {[%clk 0:00:32]}  Kf8 {[%clk 0:00:12]} 34. Qd8+ {[%clk 0:00:31]}  Kg7 {[%clk 0:00:12]} 35. Qg5+ {[%clk 0:00:31]}  Kf8 {[%clk 0:00:13]} 36. Rc1 {[%clk 0:00:30]}  Qd3 {[%clk 0:00:12]} 37. Qc5+ {[%clk 0:00:28]}  Kg7 {[%clk 0:00:11]} 38. Qxc3 {[%clk 0:00:26]}  Nf3+ {[%clk 0:00:11]} 39. Kg2 {[%clk 0:00:25]}  Qe4 {[%clk 0:00:12]} 40. d5+ {[%clk 0:00:24]}  Nd4+ {[%clk 0:00:12]} 41. Kg3 {[%clk 0:00:19]}  Qf3+ {[%clk 0:00:11]} 42. Kh4 {[%clk 0:00:17]}  Kh6 {[%clk 0:00:04]} 43. Qxd4 {[%clk 0:00:14]}  Qxf2# {[%clk 0:00:04]} 0-1


[Site "https://www.chess.com"]